fUST/lending_fUST_20241031
["ID","MTS","AMOUNT","RATE_DAILY","PERIOD"]
[341111975,1730389833037,-587.0,0.00028362,2]
[341111976,1730389833046,-587.0,0.00029189,2]
[341111977,1730389833061,-210.9749991,0.0002984,2]
[341111979,1730389833071,-210.9749991,0.0002984,2]
[341111981,1730389833080,-210.9749991,0.0002984,2]
[341111983,1730389833090,-210.9749991,0.0002984,2]
[341111985,1730389833100,-210.9749991,0.0002984,2]
[341111987,1730389833110,-421.6670596,0.0002984,2]
[341111989,1730389833120,-300.0,0.0003,2]
[341111991,1730389833129,-176.1945,0.0003,2]
[341111993,1730389833139,-158.0,0.0003,2]
[341111995,1730389833149,-1651.9771833,0.00030036,2]
[341111997,1730389833159,-3344.85,0.00030126,10]
[341111999,1730389833168,-2787.37,0.00030126,10]
[341112001,1730389833178,-2322.81,0.00030126,10]
[341112003,1730389833187,-500.0,0.00030135,2]
[341112005,1730389833196,-633.99034815,0.00030135,2]
[341112007,1730389833206,-2511.86495294,0.00030135,2]
[341112009,1730389833216,-259.0,0.00030136,2]
[341112011,1730389833225,-520.11449633,0.00030136,5]
[341112013,1730389833234,-500.0,0.00030136,5]
[341112015,1730389833243,-500.0,0.00030136,5]
[341112017,1730389833253,-500.0,0.00030136,5]
[341112019,1730389833262,-500.0,0.00030136,5]
[341112021,1730389833271,-500.0,0.00030136,5]
[341112023,1730389833281,-500.0,0.00030136,5]
[341112025,1730389833290,-500.0,0.00030136,5]
[341112027,1730389833300,-500.0,0.00030136,5]
[341112029,1730389833310,-500.0,0.00030136,5]
[341112031,1730389833319,-386.04433931,0.00030136,5]
[341112033,1730389833328,-500.0,0.00030136,5]
[341112035,1730389833338,-393.85538833,0.00030136,5]
[341112037,1730389833347,-500.03,0.00030136,5]
[341112039,1730389833356,-500.0,0.00030136,5]
[341112041,1730389833368,-500.0,0.00030136,5]
[341112043,1730389833377,-500.0,0.00030136,5]
[341112045,1730389833387,-714.27,0.00030136,5]
[341112047,1730389833397,-215.6860649,0.00030136,5]
[341112049,1730389833406,-500.0,0.00030136,2]
[341112051,1730389833419,-500.0,0.00030136,5]
[341112052,1730389833428,-500.0,0.00030136,5]
[341112053,1730389833437,-500.0,0.00030136,5]
[341112054,1730389833446,-500.0,0.00030136,5]
[341112055,1730389833454,-248.8675639,0.00030136,5]
[341112056,1730389833463,-500.0,0.00030136,5]
[341112057,1730389833473,-177.95053109,0.00030136,5]
[341112058,1730389833482,-500.0,0.00030136,5]
[341112059,1730389833492,-503.75849721,0.00030136,5]
[341112060,1730389833506,-500.0,0.00030136,5]
[341112061,1730389833516,-500.0,0.00030136,5]
[341112062,1730389833525,-500.0,0.00030136,5]
[341112063,1730389833534,-500.0,0.00030136,5]
[341112064,1730389833545,-500.0,0.00030136,5]
[341112065,1730389833554,-500.0,0.00030136,5]
[341112066,1730389833564,-1708.23,0.00030136,5]
[341112067,1730389833574,-7378.56,0.00030136,3]
[341112068,1730389833584,-855.6,0.00030136,5]
[341112069,1730389833593,-500.0,0.00030136,5]
[341112070,1730389833603,-500.0,0.00030136,5]
[341112071,1730389833612,-500.0,0.00030136,5]
[341112072,1730389833622,-181.46733245,0.00030136,5]
[341112073,1730389833632,-500.0,0.00030136,5]
[341112074,1730389833642,-412.40883961,0.00030136,5]
[341112075,1730389833651,-500.0,0.00030136,5]
[341112076,1730389833663,-1273.16,0.00030136,5]
[341112077,1730389833673,-500.0,0.00030136,5]
[341112078,1730389833682,-500.0,0.00030136,5]
[341112079,1730389833692,-500.0,0.00030136,5]
[341112080,1730389833701,-500.0,0.00030136,5]
[341112081,1730389833711,-500.0,0.00030136,5]
[341112082,1730389833721,-1111.47,0.00030136,5]
[341112083,1730389833730,-500.0,0.00030136,2]
[341112084,1730389833740,-500.0,0.00030136,5]
[341112085,1730389833750,-500.0,0.00030136,5]
[341112086,1730389833759,-500.0,0.00030136,5]
[341112087,1730389833769,-500.0,0.00030136,5]
[341112088,1730389833778,-440.60899483,0.00030136,5]
[341112089,1730389833787,-500.0,0.00030136,5]
[341112090,1730389833797,-500.0,0.00030136,5]
[341112091,1730389833807,-500.0,0.00030136,5]
[341112092,1730389833816,-962.59,0.00030136,5]
[341112093,1730389833826,-500.0,0.00030136,5]
[341112094,1730389833837,-500.0,0.00030136,5]
[341112095,1730389833846,-2528.17,0.00030136,5]
[341112096,1730389833856,-500.0,0.00030136,5]
[341112097,1730389833867,-500.0,0.00030136,5]
[341112098,1730389833878,-500.0,0.00030136,5]
[341112099,1730389833887,-516.55,0.00030136,5]
[341112100,1730389833897,-500.0,0.00030136,5]
[341112101,1730389833907,-500.0,0.00030136,5]
[341112102,1730389833918,-500.0,0.00030136,5]
[341112103,1730389833928,-500.0,0.00030136,5]
[341112104,1730389833939,-500.0,0.00030136,5]
[341112105,1730389833950,-500.0,0.00030136,5]
[341112106,1730389833961,-500.0,0.00030136,5]
[341112107,1730389833972,-500.0,0.00030136,5]
[341112108,1730389833982,-500.0,0.00030136,5]
[341112109,1730389833993,-500.0,0.00030145,5]
[341112110,1730389834002,-595.19761577,0.00030145,5]
[341112111,1730389834012,-301.61684307,0.00030145,5]
[341112112,1730389834021,-500.0,0.00030409,2]
[341112113,1730389834031,-500.0,0.0003041,5]
[341112114,1730389834042,-500.0,0.0003041,5]
[341112115,1730389834052,-500.0,0.0003041,5]
[341112116,1730389834062,-500.0,0.0003041,5]
[341112117,1730389834072,-500.0,0.0003041,5]
[341112118,1730389834081,-500.0,0.0003041,5]
[341112119,1730389834091,-160.53468892,0.0003041,5]
[341112120,1730389834100,-500.0,0.0003041,5]
[341112121,1730389834110,-500.0,0.0003041,5]
[341112122,1730389834120,-500.0,0.0003041,5]
[341112123,1730389834130,-500.0,0.0003041,5]
[341112124,1730389834140,-500.0,0.0003041,5]
[341112125,1730389834150,-714.27,0.0003041,5]
[341112126,1730389834161,-500.0,0.0003041,2]
[341112127,1730389834171,-436.89668452,0.0003041,5]
[341112128,1730389834181,-500.0,0.0003041,5]
[341112129,1730389834191,-500.0,0.0003041,5]
[341112130,1730389834203,-500.0,0.0003041,5]
[341112131,1730389834213,-500.0,0.0003041,5]
[341112132,1730389834223,-500.0,0.0003041,5]
[341112133,1730389834232,-500.0,0.0003041,5]
[341112134,1730389834242,-500.0,0.0003041,5]
[341112135,1730389834253,-500.0,0.0003041,5]
[341112136,1730389834262,-500.0,0.0003041,5]
[341112137,1730389834273,-500.0,0.0003041,5]
[341112138,1730389834282,-1708.23,0.0003041,5]
[341112139,1730389834292,-7378.56,0.0003041,3]
[341112140,1730389834302,-855.6,0.0003041,5]
[341112141,1730389834312,-500.0,0.0003041,5]
[341112142,1730389834321,-500.0,0.0003041,5]
[341112143,1730389834331,-500.0,0.0003041,5]
[341112144,1730389834341,-500.0,0.0003041,5]
[341112145,1730389834350,-500.0,0.0003041,5]
[341112146,1730389834360,-1273.16,0.0003041,5]
[341112147,1730389834370,-500.0,0.0003041,5]
[341112148,1730389834379,-500.0,0.0003041,5]
[341112149,1730389834389,-500.0,0.0003041,5]
[341112150,1730389834399,-500.0,0.0003041,5]
[341112151,1730389834420,-1111.47,0.0003041,5]
[341112152,1730389834432,-604.20364155,0.0003041,2]
[341112153,1730389834442,-500.0,0.0003041,5]
[341112154,1730389834452,-500.0,0.0003041,5]
[341112155,1730389834462,-258.6283826,0.0003041,5]
[341112156,1730389834473,-500.0,0.0003041,5]
[341112157,1730389834483,-500.0,0.0003041,5]
[341112158,1730389834493,-500.0,0.0003041,5]
[341112159,1730389834503,-500.0,0.0003041,5]
[341112160,1730389834513,-962.59,0.0003041,5]
[341112161,1730389834524,-500.0,0.0003041,5]
[341112162,1730389834534,-500.0,0.0003041,5]
[341112163,1730389834545,-2528.17,0.0003041,5]
[341112164,1730389834555,-500.0,0.0003041,5]
[341112165,1730389834565,-500.0,0.0003041,5]
[341112166,1730389834575,-500.0,0.0003041,5]
[341112167,1730389834585,-516.55,0.0003041,5]
[341112168,1730389834594,-500.0,0.0003041,5]
[341112169,1730389834604,-500.0,0.0003041,5]
[341112170,1730389834613,-500.0,0.0003041,5]
[341112171,1730389834624,-500.0,0.0003041,5]
[341112172,1730389834634,-178.56416485,0.0003041,5]
[341112173,1730389834644,-500.0,0.0003041,5]
[341112174,1730389834654,-500.0,0.0003041,5]
[341112175,1730389834666,-500.0,0.0003041,5]
[341112176,1730389834675,-500.0,0.0003041,5]
[341112177,1730389834685,-300.0,0.00030411,2]
[341112178,1730389834695,-41239.44632284,0.00030529,3]
[341112179,1730389834705,-183.98228965,0.00030584,2]
[341112180,1730389834715,-500.0,0.00030684,5]
[341112181,1730389834725,-500.0,0.00030684,5]
[341112182,1730389834735,-500.0,0.00030684,5]
[341112183,1730389834745,-500.0,0.00030684,5]
[341112184,1730389834755,-500.0,0.00030684,5]
[341112185,1730389834764,-500.0,0.00030684,5]
[341112186,1730389834774,-500.0,0.00030684,5]
[341112187,1730389834785,-500.0,0.00030684,5]
[341112188,1730389834794,-500.0,0.00030684,5]
[341112189,1730389834804,-500.0,0.00030684,5]
[341112190,1730389834814,-500.0,0.00030684,5]
[341112191,1730389834824,-714.27,0.00030684,5]
[341112192,1730389834834,-500.0,0.00030684,2]
[341112193,1730389834844,-500.0,0.00030684,5]
[341112194,1730389834854,-500.0,0.00030684,5]
[341112195,1730389834864,-512.27549761,0.00030684,5]
[341112196,1730389834875,-500.0,0.00030684,5]
[341112197,1730389834885,-500.0,0.00030684,5]
[341112198,1730389834895,-500.0,0.00030684,5]
[341112199,1730389834905,-500.0,0.00030684,5]
[341112200,1730389834921,-500.0,0.00030684,5]
[341112201,1730389834931,-500.0,0.00030684,5]
[341112202,1730389834942,-1708.23,0.00030684,5]
[341112203,1730389834954,-7378.56,0.00030684,3]
[341112204,1730389834964,-855.6,0.00030684,5]
[341112205,1730389834974,-500.0,0.00030684,5]
[341112206,1730389834984,-500.0,0.00030684,5]
[341112207,1730389834994,-500.0,0.00030684,5]
[341112208,1730389835003,-500.0,0.00030684,5]
[341112209,1730389835013,-292.67548304,0.00030684,5]
[341112210,1730389835023,-1273.16,0.00030684,5]
[341112211,1730389835036,-500.0,0.00030684,5]
[341112212,1730389835161,-500.0,0.00030684,5]
[341112213,1730389835171,-500.0,0.00030684,5]
[341112214,1730389835180,-500.0,0.00030684,5]
[341112215,1730389835190,-1111.47,0.00030684,5]
[341112216,1730389835199,-500.0,0.00030684,5]
[341112217,1730389835208,-500.0,0.00030684,5]
[341112218,1730389835217,-500.0,0.00030684,5]
[341112219,1730389835227,-500.0,0.00030684,5]
[341112220,1730389835237,-500.0,0.00030684,5]
[341112221,1730389835248,-500.0,0.00030684,5]
[341112222,1730389835257,-962.59,0.00030684,5]
[341112223,1730389835266,-500.0,0.00030684,5]
[341112224,1730389835277,-500.0,0.00030684,5]
[341112225,1730389835287,-1792.84384518,0.00030684,5]
[341112226,1730389835302,-691.95647657,0.00030684,5]
[341112227,1730389835318,-43.36967825,0.00030684,5]
[341112228,1730389835328,-500.0,0.00030684,5]
[341112229,1730389835338,-500.0,0.00030684,5]
[341112230,1730389835348,-500.0,0.00030684,5]
[341112231,1730389835357,-516.55,0.00030684,5]
[341112232,1730389835367,-500.0,0.00030684,5]
[341112233,1730389835376,-500.0,0.00030684,5]
[341112234,1730389835386,-500.0,0.00030684,5]
[341112235,1730389835395,-500.0,0.00030684,5]
[341112236,1730389835405,-500.0,0.00030684,5]
[341112237,1730389835416,-500.0,0.00030684,5]
[341112238,1730389835426,-500.0,0.00030684,5]
[341112239,1730389835435,-500.0,0.00030684,5]
[341112240,1730389835444,-500.0,0.0003069,5]
[341112241,1730389835456,-500.0,0.0003069,5]
[341112242,1730389835466,-500.0,0.0003069,5]
[341112243,1730389835475,-305.95005174,0.00030709,5]
[341112244,1730389835485,-380.27164634,0.00030709,5]
[341112245,1730389835494,-500.0,0.00030717,5]
[341112246,1730389835503,-500.0,0.00030717,5]
[341112247,1730389835512,-500.0,0.00030717,5]
[341112248,1730389835521,-188.82835451,0.00030717,5]
[341112249,1730389835530,-500.0,0.00030717,2]
[341112250,1730389835540,-500.0,0.00030717,5]
[341112251,1730389835550,-500.0,0.00030717,5]
[341112252,1730389835559,-500.0,0.00030717,5]
[341112253,1730389835569,-500.82744298,0.00030718,5]
[341112254,1730389835578,-352.88515397,0.00030718,5]
[341112255,1730389835587,-500.62371968,0.00030722,5]
[341112256,1730389835596,-152.85497671,0.00030722,5]
[341112257,1730389835605,-554.49841929,0.00030722,5]
[341112258,1730389835615,-500.0,0.00030722,5]
[341112259,1730389835626,-500.0,0.00030722,5]
[341112260,1730389835637,-823.0,0.00030753,2]
[341112261,1730389835647,-500.0,0.00030958,5]
[341112262,1730389835660,-557.04887249,0.00030958,5]
[341112263,1730389835669,-500.0,0.00030958,5]
[341112264,1730389835679,-500.0,0.00030958,5]
[341112265,1730389835688,-438.6109316,0.00030958,5]
[341112266,1730389835700,-61.3890684,0.00030958,5]
[341112267,1730389835710,-500.0,0.00030958,5]
[341112268,1730389835719,-500.0,0.00030958,5]
[341112269,1730389835728,-500.0,0.00030958,5]
[341112270,1730389835737,-500.0,0.00030958,5]
[341112271,1730389835747,-500.0,0.00030958,5]
[341112272,1730389835757,-451.10229854,0.00030958,5]
[341112273,1730389835766,-714.27,0.00030958,5]
[341112274,1730389835776,-500.0,0.00030958,2]
[341112275,1730389835785,-500.0,0.00030958,5]
[341112276,1730389835794,-500.0,0.00030958,5]
[341112277,1730389835805,-500.0,0.00030958,5]
[341112278,1730389835815,-500.0,0.00030958,5]
[341112279,1730389835824,-500.0,0.00030958,5]
[341112280,1730389835834,-500.0,0.00030958,5]
[341112281,1730389835844,-500.0,0.00030958,5]
[341112282,1730389835855,-500.0,0.00030958,5]
[341112283,1730389835865,-1708.23,0.00030958,5]
[341112284,1730389835878,-7378.56,0.00030958,3]
[341112285,1730389835887,-855.6,0.00030958,5]
[341112286,1730389835896,-500.0,0.00030958,5]
[341112287,1730389835905,-500.0,0.00030958,5]
[341112288,1730389835917,-500.0,0.00030958,5]
[341112289,1730389835926,-500.0,0.00030958,5]
[341112290,1730389835935,-1273.16,0.00030958,5]
[341112291,1730389835945,-500.0,0.00030958,5]
[341112292,1730389835954,-320.8443664,0.00030958,5]
[341112293,1730389835963,-500.0,0.00030958,5]
[341112294,1730389835973,-485.66917651,0.00030958,5]
[341112295,1730389835982,-1111.47,0.00030958,5]
[341112296,1730389835991,-500.0,0.00030958,5]
[341112297,1730389836001,-500.0,0.00030958,5]
[341112298,1730389836010,-500.0,0.00030958,5]
[341112299,1730389836019,-500.0,0.00030958,5]
[341112300,1730389836029,-500.0,0.00030958,5]
[341112301,1730389836040,-500.0,0.00030958,5]
[341112302,1730389836049,-962.59,0.00030958,5]
[341112303,1730389836058,-500.0,0.00030958,5]
[341112304,1730389836068,-500.0,0.00030958,5]
[341112305,1730389836077,-2528.17,0.00030958,5]
[341112306,1730389836087,-487.39213903,0.00030958,5]
[341112307,1730389836098,-500.0,0.00030958,5]
[341112308,1730389836108,-500.0,0.00030958,5]
[341112309,1730389836118,-516.55,0.00030958,5]
[341112310,1730389836128,-500.0,0.00030958,5]
[341112311,1730389836138,-216.98936677,0.00030958,5]
[341112312,1730389836149,-500.0,0.00030958,5]
[341112313,1730389836161,-500.0,0.00030958,5]
[341112314,1730389836170,-500.0,0.00030958,5]
[341112315,1730389836179,-500.0,0.00030958,5]
[341112316,1730389836189,-500.0,0.00030958,5]
[341112317,1730389836199,-500.0,0.00030958,5]
[341112318,1730389836209,-213.192,0.0003107,2]
[341112319,1730389836220,-1651.97718325,0.00031088,2]
[341112320,1730389836231,-1000.0,0.00031132,2]
[341112321,1730389836242,-500.0,0.00031232,5]
[341112322,1730389836252,-500.0,0.00031232,5]
[341112323,1730389836261,-500.0,0.00031232,5]
[341112324,1730389836270,-227.48039791,0.00031232,5]
[341112325,1730389836280,-500.0,0.00031232,5]
[341112326,1730389836289,-500.0,0.00031232,5]
[341112327,1730389836299,-500.0,0.00031232,5]
[341112328,1730389836308,-402.44666965,0.00031232,5]
[341112329,1730389836317,-500.0,0.00031232,5]
[341112330,1730389836327,-714.27,0.00031232,5]
[341112331,1730389836336,-500.0,0.00031232,2]
[341112332,1730389836346,-500.0,0.00031232,5]
[341112333,1730389836355,-500.0,0.00031232,5]
[341112334,1730389836373,-500.0,0.00031232,5]
[341112335,1730389836384,-196.06923042,0.00031232,5]
[341112336,1730389836394,-500.0,0.00031232,5]
[341112337,1730389836404,-500.0,0.00031232,5]
[341112338,1730389836415,-500.0,0.00031232,5]
[341112339,1730389836425,-500.0,0.00031232,5]
[341112340,1730389836435,-1708.23,0.00031232,5]
[341112341,1730389836445,-7378.56,0.00031232,3]
[341112342,1730389836454,-855.6,0.00031232,5]
[341112343,1730389836464,-500.0,0.00031232,5]
[341112344,1730389836474,-500.0,0.00031232,5]
[341112345,1730389836483,-500.0,0.00031232,5]
[341112346,1730389836494,-500.0,0.00031232,5]
[341112347,1730389836504,-1273.16,0.00031232,5]
[341112348,1730389836514,-500.0,0.00031232,5]
[341112349,1730389836524,-500.0,0.00031232,5]
[341112350,1730389836533,-1111.47,0.00031232,5]
[341112351,1730389836543,-500.0,0.00031232,5]
[341112352,1730389836552,-500.0,0.00031232,5]
[341112353,1730389836562,-500.0,0.00031232,5]
[341112354,1730389836573,-500.0,0.00031232,5]
[341112355,1730389836583,-500.0,0.00031232,5]
[341112356,1730389836592,-500.0,0.00031232,5]
[341112357,1730389836602,-962.59,0.00031232,5]
[341112358,1730389836612,-500.0,0.00031232,5]
[341112359,1730389836622,-249.42362924,0.00031232,5]
[341112360,1730389836632,-2528.17,0.00031232,5]
[341112361,1730389836642,-500.0,0.00031232,5]
[341112362,1730389836652,-500.0,0.00031232,5]
[341112363,1730389836663,-516.55,0.00031232,5]
[341112364,1730389836672,-500.0,0.00031232,5]
[341112365,1730389836682,-500.0,0.00031232,5]
[341112366,1730389836692,-500.0,0.00031232,5]
[341112367,1730389836701,-500.0,0.00031232,5]
[341112368,1730389836711,-500.0,0.00031232,5]
[341112369,1730389836720,-171.49851207,0.00031232,5]
[341112370,1730389836729,-500.0,0.00031232,5]
[341112371,1730389836739,-1530.4978266,0.00031497,10]
[341112372,1730389836749,-282.0,0.00031506,5]
[341112373,1730389836758,-500.0,0.00031506,5]
[341112374,1730389836767,-507.53258036,0.00031506,5]
[341112375,1730389836777,-500.0,0.00031506,5]
[341112376,1730389836786,-500.0,0.00031506,5]
[341112377,1730389836796,-558.77542068,0.00031506,5]
[341112378,1730389836805,-500.0,0.00031506,5]
[341112379,1730389836815,-714.27,0.00031506,5]
[341112380,1730389836824,-500.0,0.00031506,2]
[341112381,1730389836834,-500.0,0.00031506,5]
[341112382,1730389836843,-353.32460246,0.00031506,5]
[341112383,1730389836852,-500.0,0.00031506,5]
[341112384,1730389836862,-500.0,0.00031506,5]
[341112385,1730389836876,-462.4932391,0.00031506,5]
[341112386,1730389836887,-500.0,0.00031506,5]
[341112387,1730389836896,-500.0,0.00031506,5]
[341112388,1730389836906,-1708.23,0.00031506,5]
[341112389,1730389836917,-7378.56,0.00031506,3]
[341112390,1730389836927,-855.6,0.00031506,5]
[341112391,1730389836936,-474.23186494,0.00031506,5]
[341112392,1730389836946,-500.0,0.00031506,5]
[341112393,1730389836956,-500.0,0.00031506,5]
[341112394,1730389836966,-500.0,0.00031506,5]
[341112395,1730389836975,-1273.16,0.00031506,5]
[341112396,1730389836984,-500.0,0.00031506,5]
[341112397,1730389836993,-500.0,0.00031506,5]
[341112398,1730389837002,-1111.47,0.00031506,5]
[341112399,1730389837012,-500.0,0.00031506,5]
[341112400,1730389837021,-500.0,0.00031506,5]
[341112401,1730389837032,-500.0,0.00031506,5]
[341112402,1730389837042,-181.35355691,0.00031506,5]
[341112403,1730389837052,-500.0,0.00031506,5]
[341112404,1730389837063,-500.0,0.00031506,5]
[341112405,1730389837072,-962.59,0.00031506,5]
[341112406,1730389837082,-212.91,0.00031506,5]
[341112407,1730389837093,-2528.17,0.00031506,5]
[341112408,1730389837198,-500.0,0.00031506,5]
[341112409,1730389837208,-500.0,0.00031506,5]
[341112410,1730389837217,-516.55,0.00031506,5]
[341112411,1730389837227,-500.0,0.00031506,5]
[341112412,1730389837239,-500.0,0.00031506,5]
[341112413,1730389837248,-500.0,0.00031506,5]
[341112414,1730389837257,-500.0,0.00031506,5]
[341112415,1730389837267,-500.0,0.00031506,5]
[341112416,1730389837276,-160.0,0.00031547,3]
[341112417,1730389837285,-153.5761511,0.00031598,2]
[341112418,1730389837294,-300.0,0.00031644,2]
[341112419,1730389837303,-159.0,0.00031644,2]
[341112420,1730389837313,-4000.0,0.0003168,2]
[341112421,1730389837323,-20000.0,0.00031758,3]
[341112422,1730389837334,-349.0,0.00031778,14]
[341112423,1730389837344,-151.0,0.0003178,7]
[341112424,1730389837354,-151.0,0.0003178,7]
[341112425,1730389837364,-151.0,0.0003178,7]
[341112426,1730389837374,-351.222021,0.0003178,7]
[341112427,1730389837384,-351.222021,0.0003178,7]
[341112428,1730389837393,-500.0,0.0003178,5]
[341112429,1730389837402,-500.0,0.0003178,5]
[341112430,1730389837413,-500.0,0.0003178,5]
[341112431,1730389837423,-500.0,0.0003178,5]
[341112432,1730389837432,-714.27,0.0003178,5]
[341112433,1730389837441,-500.0,0.0003178,2]
[341112434,1730389837450,-500.0,0.0003178,5]
[341112435,1730389837459,-500.0,0.0003178,5]
[341112436,1730389837468,-500.0,0.0003178,5]
[341112437,1730389837478,-500.0,0.0003178,5]
[341112438,1730389837488,-500.0,0.0003178,5]
[341112439,1730389837497,-1708.23,0.0003178,5]
[341112440,1730389837506,-7378.56,0.0003178,3]
[341112441,1730389837516,-855.6,0.0003178,5]
[341112442,1730389837525,-500.0,0.0003178,5]
[341112443,1730389837535,-500.0,0.0003178,5]
[341112444,1730389837544,-500.0,0.0003178,5]
[341112445,1730389837554,-1273.16,0.0003178,5]
[341112446,1730389837563,-500.0,0.0003178,5]
[341112447,1730389837573,-208.65315355,0.0003178,5]
[341112448,1730389837582,-1111.47,0.0003178,5]
[341112449,1730389837592,-500.0,0.0003178,5]
[341112450,1730389837601,-500.0,0.0003178,5]
[341112451,1730389837611,-500.0,0.0003178,5]
[341112452,1730389837621,-500.0,0.0003178,5]
[341112453,1730389837631,-962.59,0.0003178,5]
[341112454,1730389837641,-2528.17,0.0003178,5]
[341112455,1730389837651,-500.0,0.0003178,5]
[341112456,1730389837663,-500.0,0.0003178,5]
[341112457,1730389837673,-516.55,0.0003178,5]
[341112458,1730389837683,-174.1,0.0003178,5]
[341112459,1730389837692,-500.0,0.0003178,5]
[341112460,1730389837702,-500.0,0.0003178,5]
[341112461,1730389837712,-500.0,0.0003178,5]
[341112462,1730389837722,-500.0,0.0003178,5]
[341112463,1730389837731,-200.0,0.00032,14]
[341112464,1730389837741,-200.0,0.00032,14]
[341112465,1730389837751,-186.39151356,0.00032,4]
[341112466,1730389837761,-13425.77980077,0.00032,3]
[341112467,1730389837771,-1202.9062447,0.00032,2]
[341112468,1730389837781,-151.0,0.00032054,7]
[341112469,1730389837791,-151.0,0.00032054,7]
[341112470,1730389837801,-151.0,0.00032054,7]
[341112471,1730389837813,-351.222021,0.00032054,7]
[341112472,1730389837824,-351.222021,0.00032054,7]
[341112473,1730389837836,-151.0,0.00032054,7]
[341112474,1730389837847,-151.0,0.00032054,7]
[341112475,1730389837857,-408.462668,0.00032054,7]
[341112476,1730389837868,-408.462668,0.00032054,7]
[341112477,1730389837879,-808.48946,0.00032054,7]
[341112478,1730389837888,-808.48946,0.00032054,7]
[341112479,1730389837898,-151.0,0.00032054,7]
[341112480,1730389837908,-151.0,0.00032054,7]
[341112481,1730389837919,-151.0,0.00032054,7]
[341112482,1730389837929,-151.0,0.00032054,7]
[341112483,1730389837941,-204.66844,0.00032054,7]
[341112484,1730389837952,-443.186649,0.00032054,7]
[341112485,1730389837962,-443.186649,0.00032054,7]
[341112486,1730389837971,-152.058317,0.00032054,7]
[341112487,1730389837980,-151.0,0.00032054,7]
[341112488,1730389837990,-151.0,0.00032054,7]
[341112489,1730389838000,-151.0,0.00032054,7]
[341112490,1730389838012,-151.0,0.00032054,7]
[341112491,1730389838024,-206.988592,0.00032054,7]
[341112492,1730389838035,-2702.589543,0.00032054,7]
[341112493,1730389838045,-930.150721,0.00032054,7]
[341112494,1730389838056,-2702.589543,0.00032054,7]
[341112495,1730389838066,-500.0,0.00032054,5]
[341112496,1730389838076,-151.0,0.00032054,7]
[341112497,1730389838086,-2323.518958,0.00032054,7]
[341112498,1730389838096,-2323.518958,0.00032054,7]
[341112499,1730389838106,-456.555252,0.00032054,5]
[341112500,1730389838117,-456.555252,0.00032054,5]
[341112501,1730389838126,-500.0,0.00032054,5]
[341112502,1730389838136,-4988.927166,0.00032054,7]
[341112503,1730389838145,-4988.927166,0.00032054,7]
[341112504,1730389838155,-500.0,0.00032054,5]
[341112505,1730389838166,-151.0,0.00032054,7]
[341112506,1730389838176,-154.190696,0.00032054,7]
[341112507,1730389838185,-500.0,0.00032054,5]
[341112509,1730389838194,-714.27,0.00032054,5]
[341112510,1730389838204,-500.0,0.00032054,2]
[341112511,1730389838214,-500.0,0.00032054,5]
[341112512,1730389838224,-500.0,0.00032054,5]